bitfinex/quotes_SOLUSD_20250922
["timestamp","ask_amount","ask_price","bid_price","bid_amount"]
[1758581003136,26.66000001,220.58,220.54,0.66]
[1758581003715,26.00000001,220.58,220.54,0.66]
[1758581004211,1e-08,220.58,220.55,0.66]
[1758581005410,1e-08,220.58,220.56,4.53391367]
[1758581005823,1e-08,220.58,220.57,0.66]
[1758581009725,1e-08,220.58,220.57,5.19370811]
[1758581016950,1e-08,220.58,220.57,18.78930212]
[1758581020941,1e-08,220.58,220.57,21.21451869]
[1758581023365,1e-08,220.58,220.57,18.78930212]
[1758581023732,1e-08,220.58,220.57,21.21451869]
[1758581034072,0.66000001,220.58,220.57,4.53370811]
[1758581034380,1e-08,220.58,220.57,4.53370811]
[1758581035270,1e-08,220.58,220.56,4.53391367]
[1758581037968,1e-08,220.58,220.55,11.33514395]
[1758581038167,1e-08,220.58,220.56,0.71]
[1758581038658,1e-08,220.58,220.57,0.71]
[1758581039059,1e-08,220.58,220.56,14.30559401]
[1758581040051,1e-08,220.58,220.57,4.53370811]
[1758581044458,1e-08,220.58,220.57,5.24370811]
[1758581045764,1e-08,220.58,220.57,4.53370811]
[1758581050684,1e-08,220.58,220.57,5.24370811]
[1758581051665,1e-08,220.58,220.57,18.83930212]
[1758581052664,1e-08,220.58,220.57,21.26451869]
[1758581058409,1e-08,220.59,220.58,13.59559401]
[1758581058700,1e-08,220.59,220.58,50.54517035]
[1758581059577,1e-08,220.59,220.58,55.07867293]
[1758581072311,1e-08,220.59,220.58,56.89507962]
[1758581074198,0.2,220.61,220.58,68.22883608]
[1758581074396,0.2,220.61,220.6,1.54957634]
[1758581074597,0.2,220.61,220.6,36.26957634]
[1758581075994,0.2,220.61,220.6,40.8026679]
[1758581079681,0.2,220.61,220.6,41.4726679]
[1758581082087,0.86,220.61,220.6,39.25309156]
[1758581083190,0.2,220.61,220.6,39.25309156]
[1758581083695,0.86,220.61,220.6,39.25309156]
[1758581084596,0.2,220.61,220.6,34.7]
[1758581086185,0.2,220.61,220.59,4.53329706]
[1758581086391,0.2,220.61,220.6,48.29559401]
[1758581088897,0.2,220.61,220.6,52.82868557]
[1758581091912,0.2,220.61,220.6,53.49868557]
[1758581092417,0.2,220.61,220.6,52.82868557]
[1758581095012,0.2,220.61,220.6,53.49868557]
[1758581100706,0.2,220.61,220.6,53.52868557]
[1758581102104,1e-08,220.62,220.6,53.52868557]
[1758581102313,1e-08,220.62,220.61,41.84517035]
[1758581102614,0.2,220.63,220.62,13.59559401]
[1758581102811,0.2,220.63,220.62,48.99559401]
[1758581103422,0.2,220.64,220.62,48.99559401]
[1758581103721,0.2,220.64,220.63,6.78205152]
[1758581104122,0.2,220.64,220.63,8.5982108]
[1758581105618,0.2,220.64,220.63,22.33987566]
[1758581107523,0.2,220.65,220.64,13.59559401]
[1758581107825,0.2,220.65,220.64,48.99559401]
[1758581108621,0.2,220.65,220.64,55.34385814]
[1758581108830,1e-08,220.65,220.64,55.34385814]
[1758581110017,0.2,220.7,220.64,66.67453254]
[1758581110218,0.2,220.7,220.66,15.14517035]
[1758581110411,0.2,220.7,220.66,49.84517035]
[1758581110612,0.2,220.7,220.66,50.54517035]
[1758581110824,0.2,220.7,220.66,56.8928588]
[1758581115510,0.2,220.7,220.66,83.91255389]
[1758581118011,0.2,220.7,220.66,83.89255389]
[1758581118413,0.2,220.7,220.66,49.21255389]
[1758581118711,0.65,220.69,220.66,81.3767244]
[1758581118910,0.85,220.67,220.66,18.12745297]
[1758581119148,0.85,220.67,220.64,4.53212485]
[1758581119316,0.65,220.66,220.64,4.53212485]
[1758581119513,0.65,220.65,220.64,4.53212485]
[1758581120342,0.65,220.65,220.63,13.74166486]
[1758581120545,0.2,220.67,220.62,4.53257857]
[1758581120546,0.65,220.64,220.62,4.53257857]
[1758581120840,0.65,220.63,220.62,4.53257857]
[1758581121614,0.65,220.63,220.62,18.16463404]
[1758581121813,0.65,220.63,220.62,4.53257857]
[1758581126458,0.65,220.63,220.62,18.29391878]
[1758581126944,0.2,220.67,220.62,18.29391878]
[1758581127241,0.65,220.64,220.62,18.29391878]
[1758581129448,0.66,220.64,220.62,18.29391878]
[1758581131743,0.66,220.65,220.62,18.29391878]
[1758581134552,0.66,220.64,220.62,18.29391878]
[1758581135849,0.66,220.63,220.62,13.76134021]
[1758581136049,0.66,220.63,220.58,3.56598304]
[1758581136234,0.66,220.62,220.58,3.56598304]
[1758581136431,0.66,220.62,220.58,0.67]
[1758581136831,0.66,220.62,220.58,5.20349992]
[1758581138544,5.19152246,220.64,220.59,5.20329689]
[1758581138751,0.66,220.63,220.59,5.20329689]
[1758581139831,0.66,220.63,220.59,18.50102026]
[1758581142757,39.41216326,220.67,220.59,13.29772337]
[1758581142758,0.66,220.62,220.59,13.29772337]
[1758581143052,0.66,220.62,220.57,0.67]
[1758581143258,0.66,220.62,220.58,0.67]
[1758581143652,0.66,220.61,220.56,3.09240831]
[1758581143849,4.53257539,220.63,220.55,4.53411924]
[1758581144033,26.66,220.6,220.53,0.67]
[1758581145355,31.19319413,220.6,220.54,4.53428492]
[1758581145530,0.66,220.59,220.54,4.53428492]
[1758581145727,0.66,220.58,220.54,13.5934361]
[1758581146060,0.66,220.57,220.5,4.53514739]
[1758581146252,0.66,220.57,220.51,0.67]
[1758581147378,0.66,220.57,220.52,4.53473607]
[1758581147562,0.66,220.57,220.53,0.67]
[1758581147853,0.66,220.59,220.54,0.67]
[1758581148060,0.66,220.59,220.54,14.61058945]
[1758581148254,0.66,220.59,220.54,0.67]
[1758581149065,26.0,220.6,220.55,0.67]
[1758581149453,26.0,220.6,220.56,0.67]
[1758581149747,26.66,220.6,220.56,0.67]
[1758581149958,26.66,220.6,220.52,15.87157626]
[1758581149959,30.53314192,220.6,220.54,0.67]
[1758581150137,31.19314192,220.6,220.54,0.67]
[1758581151161,31.19314192,220.6,220.54,18.48318233]
[1758581152448,31.19314192,220.6,220.55,0.67]
[1758581152645,26.66,220.6,220.55,0.67]
[1758581152841,26.0,220.59,220.56,0.67]
[1758581153068,26.0,220.61,220.56,0.67]
[1758581153245,60.7,220.61,220.56,0.67]
[1758581153643,0.66,220.65,220.56,3.09240831]
[1758581153847,168.9,220.64,220.57,0.67]
[1758581154365,169.56,220.64,220.57,0.67]
[1758581154565,169.56,220.64,220.58,4.53350258]
[1758581154881,169.56,220.64,220.59,0.67]
[1758581155652,134.2,220.64,220.6,0.67]
[1758581155842,34.7,220.65,220.61,0.67]
[1758581156043,35.36,220.65,220.61,0.67]
[1758581156367,35.36,220.65,220.59,0.67]
[1758581157377,35.36,220.65,220.6,4.53309156]
[1758581157568,34.7,220.65,220.6,4.53309156]
[1758581157770,0.66,220.64,220.6,5.21309156]
[1758581158359,0.2,220.67,220.61,0.68]
[1758581158542,34.7,220.66,220.61,0.68]
[1758581158756,34.7,220.66,220.6,4.53309156]
[1758581158956,34.7,220.66,220.61,0.68]
[1758581159277,35.36,220.66,220.61,0.68]
[1758581160187,35.36,220.66,220.61,5.2127974]
[1758581160683,0.66,220.65,220.61,5.2127974]
[1758581163790,34.7,220.66,220.61,5.2127974]
[1758581163975,134.4,220.67,220.62,0.68]
[1758581164168,35.34,220.66,220.61,4.5327974]
[1758581164371,0.66,220.65,220.61,5.2127974]
[1758581164873,34.68,220.66,220.61,5.2127974]
[1758581165064,35.34,220.66,220.62,0.68]
[1758581165390,34.68,220.66,220.62,5.2125065]
[1758581166988,34.68,220.66,220.62,4.5325065]
[1758581167170,34.68,220.66,220.63,0.68]
[1758581167371,34.68,220.66,220.63,5.21235586]
[1758581167588,34.68,220.66,220.64,0.68]
[1758581168584,34.68,220.66,220.63,4.53235586]
[1758581168585,34.68,220.66,220.62,5.21268062]
[1758581168783,34.68,220.66,220.63,0.68]
[1758581168981,134.4,220.67,220.64,0.68]
[1758581169188,169.08,220.67,220.62,4.53268062]
[1758581169491,169.08,220.67,220.63,0.68]
[1758581170479,169.08,220.67,220.64,4.53226976]
[1758581170885,169.08,220.67,220.64,5.21226976]
[1758581171192,134.4,220.67,220.64,5.21226976]
[1758581172694,134.4,220.67,220.64,4.53226976]
[1758581176813,134.4,220.67,220.65,3.14240831]
[1758581176988,134.4,220.67,220.66,0.72]
[1758581177187,0.2,220.67,220.66,0.72]
[1758581179318,0.2,220.67,220.66,5.25185896]
[1758581184105,0.2,220.67,220.66,6.80132293]
[1758581189208,0.86,220.67,220.66,4.53185896]
[1758581189520,0.2,220.67,220.66,4.53185896]
[1758581189702,0.2,220.67,220.66,5.22185896]
[1758581190410,0.2,220.67,220.66,4.53185896]
[1758581191101,0.2,220.67,220.65,18.12765836]
[1758581191626,0.2,220.67,220.65,18.81765836]
[1758581192221,0.2,220.67,220.65,18.12765836]
[1758581192431,0.86,220.67,220.65,18.12765836]
[1758581192618,0.2,220.67,220.65,18.12765836]
[1758581193228,0.2,220.67,220.65,18.81765836]
[1758581196304,0.2,220.67,220.66,5.22185896]
[1758581197728,0.2,220.67,220.66,4.53185896]
[1758581198315,0.2,220.67,220.66,5.22185896]
[1758581201224,0.2,220.67,220.66,4.53185896]
[1758581201430,0.2,220.67,220.65,5.22206022]
[1758581201630,0.2,220.67,220.66,0.69]
[1758581202420,0.2,220.67,220.65,5.22206022]
[1758581203820,0.2,220.67,220.66,0.69]
[1758581204617,37.06946397,220.67,220.6,0.69]
[1758581204825,37.06946397,220.67,220.59,13.59559401]
[1758581204826,1.54946397,220.64,220.59,13.59559401]
[1758581205021,0.66,220.63,220.59,13.59559401]
[1758581205226,0.66,220.63,220.59,14.28559401]
[1758581205413,1.54946397,220.64,220.6,0.69]
[1758581205609,3.04786195,220.62,220.6,0.69]
[1758581206418,3.04786195,220.62,220.59,18.12871928]
[1758581206619,3.04786195,220.62,220.59,18.81871928]
[1758581208128,3.04786195,220.62,220.6,0.69]
[1758581208323,3.70786195,220.62,220.58,0.69]
[1758581208522,2.20946397,220.61,220.57,0.69]
[1758581208739,3.04745866,220.63,220.58,0.69]
[1758581208941,3.04786195,220.61,220.55,18.12971325]
[1758581209145,3.70786195,220.61,220.56,0.69]
[1758581209323,3.04786195,220.61,220.56,0.69]
[1758581209635,2.20946397,220.61,220.55,18.12971325]
[1758581209828,15.83746497,220.61,220.56,0.69]
[1758581210027,15.83746497,220.61,220.57,5.22370535]
[1758581210231,15.17746497,220.61,220.57,5.22370535]
[1758581210840,1.54946397,220.61,220.57,5.22370535]
[1758581211218,13.628001,220.6,220.57,5.22370535]
[1758581213941,13.628001,220.6,220.58,0.69]
[1758581214148,13.628001,220.6,220.59,0.69]
[1758581214738,26.0,220.63,220.57,13.59559401]
[1758581214739,35.32,220.63,220.57,13.59559401]
[1758581215044,13.59559401,220.61,220.57,14.28559401]
[1758581215360,13.59559401,220.61,220.57,13.59559401]
[1758581215530,13.59559401,220.61,220.58,0.69]
[1758581216420,13.59559401,220.61,220.58,5.22347849]
[1758581216642,13.59559401,220.61,220.58,4.53347849]
[1758581216944,39.85247966,220.63,220.59,0.69]
[1758581217743,13.62738195,220.62,220.59,0.69]
[1758581219335,13.62738195,220.62,220.59,5.22321004]
[1758581219536,13.62738195,220.62,220.59,5.18321004]
[1758581220646,13.62738195,220.62,220.57,18.77918297]
[1758581220948,13.62738195,220.62,220.58,0.65]
[1758581222558,27.54946397,220.6,220.54,13.8666536]
[1758581222734,27.54946397,220.6,220.53,13.59559401]
[1758581222735,6.08314606,220.58,220.51,0.65]
[1758581222937,0.65,220.57,220.5,5.18511858]
[1758581223251,0.65,220.56,220.5,5.18511858]
[1758581223430,0.65,220.56,220.5,0.65]
[1758581223928,13.59559401,220.55,220.5,5.18514528]
[1758581224154,13.59559401,220.55,220.51,0.65]
[1758581224337,17.88240693,220.55,220.51,13.5326532]
[1758581224646,0.65,220.54,220.49,13.59559401]
[1758581224832,0.65,220.54,220.5,13.59559401]
[1758581225031,14.24559401,220.54,220.5,0.65]
[1758581227655,0.65,220.53,220.49,13.62041142]
[1758581227870,15.14505798,220.54,220.45,4.53607128]
[1758581227871,0.65,220.52,220.45,4.53607128]
[1758581228158,61.33,220.51,220.44,14.24559401]
[1758581228341,0.65,220.5,220.4,11.34277709]
[1758581228541,2.19946397,220.5,220.42,0.75]
[1758581228741,2.19946397,220.5,220.43,13.59559401]
[1758581228937,5.18554893,220.49,220.43,27.30069258]
[1758581229130,0.65,220.48,220.43,13.59559401]
[1758581229337,35.33,220.47,220.42,0.1]
[1758581229848,34.68,220.47,220.42,0.75]
[1758581230051,0.65,220.46,220.42,0.75]
[1758581230564,34.68,220.47,220.42,0.75]
[1758581230763,0.65,220.46,220.42,0.75]
[1758581231140,34.68,220.47,220.42,0.75]
[1758581231340,35.33,220.47,220.42,5.28679011]
[1758581231661,34.68,220.47,220.43,0.65]
[1758581231865,34.68,220.47,220.44,0.65]
[1758581233344,46.0222117,220.47,220.44,0.65]
[1758581233870,11.3422117,220.47,220.44,4.53636884]
[1758581234039,34.68,220.51,220.45,0.65]
[1758581234242,11.3422117,220.49,220.45,0.65]
[1758581234469,11.3422117,220.49,220.44,4.53636884]
[1758581234665,11.3422117,220.49,220.45,0.65]
[1758581236270,11.3422117,220.49,220.45,5.1861088]
[1758581237564,11.3422117,220.49,220.46,0.68]
[1758581238766,11.3422117,220.49,220.46,5.2159002]
[1758581244859,11.3422117,220.49,220.47,0.68]
[1758581245357,11.3422117,220.49,220.46,4.5359002]
[1758581245578,11.3422117,220.49,220.46,5.2159002]
[1758581247061,11.3422117,220.49,220.47,0.68]
[1758581247262,0.04539677,249.58,220.47,0.68]
[1758581247263,26.0,220.52,220.47,0.68]
[1758581247478,74.31357495,220.52,220.47,0.68]
[1758581247849,26.0,220.52,220.47,0.68]
[1758581248068,39.63357495,220.52,220.47,0.68]
[1758581248768,0.66,220.59,220.52,13.59559401]
[1758581248974,13.63047774,220.57,220.53,0.67]
[1758581249153,13.63047774,220.57,220.51,2.42573592]
[1758581249352,13.63047774,220.57,220.52,14.26559401]
[1758581249549,13.63047774,220.57,220.53,0.67]
[1758581250293,34.68,220.58,220.53,0.67]
[1758581250573,48.30923926,220.58,220.54,13.59559401]
[1758581250881,48.30923926,220.58,220.55,5.20411924]
[1758581251254,13.62923926,220.58,220.55,5.20411924]
[1758581251454,34.68,220.59,220.55,5.20411924]
[1758581251683,48.27559401,220.59,220.55,5.20411924]
[1758581252173,13.59559401,220.59,220.55,5.20411924]
[1758581252363,13.59559401,220.59,220.55,4.53411924]
[1758581252567,13.59559401,220.59,220.56,5.20375153]
[1758581252781,13.59559401,220.59,220.57,0.67]
[1758581252949,34.68,220.6,220.57,0.67]
[1758581253354,34.68,220.6,220.58,0.67]
[1758581253660,0.66,220.59,220.55,4.53405745]
[1758581253862,0.66,220.58,220.55,4.53405745]
[1758581254462,34.68,220.6,220.55,4.53405745]
[1758581254672,0.66,220.59,220.55,4.53405745]
[1758581254872,0.66,220.59,220.55,5.20405745]
[1758581255184,34.68,220.6,220.56,0.67]
[1758581255557,34.68,220.6,220.57,0.67]
[1758581256382,48.27559401,220.61,220.57,0.67]
[1758581256986,48.27559401,220.61,220.58,4.53350258]
[1758581257175,48.93559401,220.61,220.58,4.53350258]
[1758581258283,13.59559401,220.61,220.59,0.67]
[1758581258488,13.59559401,220.61,220.58,4.53350258]
[1758581258680,13.59559401,220.61,220.59,0.67]
[1758581258891,168.88,220.63,220.6,0.67]
[1758581259062,0.66,220.66,220.61,0.67]
[1758581259390,34.7,220.65,220.62,0.67]
[1758581259690,13.62676296,220.64,220.6,0.67]
[1758581259892,34.7,220.65,220.59,13.59559401]
[1758581260201,34.7,220.65,220.6,0.67]
[1758581260389,34.7,220.65,220.61,0.67]
[1758581260772,26.66,220.66,220.61,0.67]
[1758581261090,34.7,220.65,220.61,0.67]
[1758581261495,35.36,220.65,220.6,4.53309156]
[1758581261664,0.66,220.64,220.57,0.67]
[1758581261863,3.08573592,220.64,220.56,18.12950768]
[1758581262063,0.66,220.63,220.56,18.12950768]
[1758581262286,34.7,220.62,220.56,18.79950768]
[1758581262500,35.36,220.62,220.56,18.79950768]
[1758581263770,35.36,220.62,220.58,4.53350258]
[1758581264098,0.66,220.61,220.52,12.00674282]
[1758581264298,39.23277374,220.62,220.39,13.72]
[1758581264299,26.0,220.59,220.49,14.26559401]
[1758581264472,2.42573592,220.57,220.49,14.26559401]
[1758581264790,26.0,220.55,220.49,14.26559401]
[1758581264998,34.72,220.54,220.49,14.26559401]
[1758581265192,35.38,220.54,220.49,14.26559401]
[1758581266896,35.38,220.54,220.5,4.53514739]
[1758581267796,34.72,220.54,220.5,4.53514739]
[1758581267981,34.72,220.54,220.51,0.67]
[1758581268495,26.0,220.55,220.51,0.67]
[1758581268698,34.72,220.54,220.51,0.67]
[1758581269602,34.72,220.54,220.51,5.20490153]
[1758581270897,34.72,220.54,220.51,0.67]
[1758581271103,34.72,220.54,220.49,18.13083859]
[1758581271276,34.72,220.54,220.51,0.67]
[1758581272404,34.72,220.54,220.51,5.20490423]
[1758581273102,26.0,220.55,220.51,5.20490423]
[1758581273305,61.36,220.55,220.51,5.20490423]
[1758581273902,26.66,220.55,220.51,5.20490423]
[1758581274103,61.36,220.55,220.51,5.20490423]
[1758581277402,168.88,220.58,220.52,3.09573592]
[1758581277605,168.88,220.58,220.53,0.7]
[1758581277801,134.2,220.58,220.54,13.59559401]
[1758581278006,134.86,220.58,220.54,14.29559401]
[1758581279604,134.2,220.58,220.55,4.53411924]
[1758581279809,26.0,220.54,220.42,0.1]
[1758581279986,28.42573592,220.5,220.42,0.1]
[1758581280307,38.27465141,220.49,220.42,0.1]
[1758581280504,0.66,220.49,220.42,4.63673668]
[1758581280707,35.9,220.5,220.43,14.29559401]
[1758581281484,35.24,220.5,220.43,13.59559401]
[1758581281705,35.24,220.5,220.44,5.23638178]
[1758581282708,0.66,220.49,220.43,13.59559401]
[1758581282892,0.66,220.49,220.43,18.83214654]
[1758581283707,13.59559401,220.53,220.44,0.7]
[1758581283919,35.24,220.53,220.45,13.59559401]
[1758581284116,0.66,220.52,220.45,0.7]
[1758581284308,0.66,220.52,220.46,0.7]
[1758581284499,35.24,220.53,220.46,0.7]
[1758581285215,35.24,220.53,220.47,4.5357645]
[1758581285512,35.24,220.53,220.47,5.2357645]
[1758581286211,35.9,220.53,220.47,4.5357645]
[1758581286393,40.4345331,220.53,220.47,4.5357645]
[1758581287397,7.6205525,220.52,220.45,4.53611917]
[1758581287598,0.66,220.51,220.46,13.59559401]
[1758581288305,0.66,220.5,220.46,13.59559401]
[1758581288707,0.66,220.49,220.46,13.59559401]
[1758581289337,0.66,220.48,220.42,13.69559401]
[1758581289615,35.24,220.47,220.42,0.1]
[1758581289790,35.24,220.47,220.43,0.7]
[1758581290295,35.9,220.47,220.42,0.1]
[1758581290493,3.08573592,220.46,220.42,0.1]
[1758581290708,2.42573592,220.43,220.42,0.1]
[1758581293628,2.42573592,220.45,220.42,4.63676922]
[1758581295611,2.42573592,220.45,220.42,0.1]
[1758581297098,2.42573592,220.45,220.42,0.81]
[1758581297298,2.42573592,220.45,220.42,5.34678834]
[1758581297613,2.42573592,220.45,220.42,4.63678834]
[1758581297812,2.42573592,220.45,220.42,5.34678834]
[1758581298616,2.42573592,220.45,220.42,4.63678834]
[1758581298815,2.42573592,220.45,220.42,5.34678834]
[1758581299118,0.66,220.44,220.42,0.1]
[1758581300708,0.66,220.43,220.42,0.1]
[1758581300909,3.08573592,220.45,220.42,0.1]
[1758581302722,1.55386455,220.44,220.42,0.1]
[1758581305420,0.66,220.43,220.42,0.1]
[1758581305724,35.84,220.43,220.42,0.1]
[1758581306724,44.0447527,220.43,220.42,0.1]
[1758581309302,10.41861725,220.43,220.42,0.1]
[1758581309498,45.57861725,220.43,220.42,0.1]
[1758581309916,38.82816513,220.43,220.42,0.1]
[1758581310118,43.3647527,220.43,220.42,0.1]
[1758581310310,8.8647527,220.43,220.42,0.1]
[1758581310510,44.0447527,220.43,220.42,0.1]
[1758581314429,8.8647527,220.43,220.42,0.1]
[1758581314604,44.0247527,220.43,220.42,0.1]
[1758581315105,43.3647527,220.43,220.42,0.1]
[1758581315309,35.14,220.43,220.42,0.79]
[1758581315508,35.14,220.43,220.42,0.1]
[1758581315811,3.54166307,220.43,220.42,0.1]
[1758581316011,35.14,220.43,220.42,0.1]
[1758581316801,138.73638663,220.44,220.42,0.1]
[1758581317007,35.14,220.43,220.42,0.1]
[1758581317333,138.73638663,220.44,220.42,0.1]
[1758581317537,35.14,220.43,220.42,0.1]
[1758581318433,38.69941667,220.43,220.42,0.1]
[1758581318629,3.55941667,220.43,220.42,0.1]
[1758581318821,35.14,220.43,220.42,0.1]
[1758581320217,138.73638663,220.44,220.42,0.1]
[1758581320419,35.12,220.43,220.42,0.1]
[1758581320724,38.6750753,220.43,220.42,0.1]
[1758581321829,43.21166287,220.43,220.42,0.1]
[1758581322133,38.6550753,220.43,220.42,0.1]
[1758581322317,35.1,220.43,220.42,0.1]
[1758581325542,138.73639225,220.44,220.42,0.1]
[1758581325840,35.1,220.43,220.42,0.1]
[1758581329142,38.13846199,220.43,220.42,0.1]
[1758581330222,35.1,220.43,220.42,0.79]
[1758581330752,1.81863648,220.46,220.42,0.79]
[1758581331057,134.86,220.51,220.42,5.32673008]
[1758581331058,35.08,220.47,220.42,5.32673008]
[1758581331230,38.12071999,220.46,220.43,0.69]
[1758581331433,35.08,220.46,220.43,0.69]
[1758581332132,3.04210362,220.45,220.43,5.22652596]
[1758581332332,35.08,220.46,220.44,0.69]
[1758581332538,3.04282162,220.45,220.44,0.69]
[1758581332848,3.04282162,220.45,220.43,4.53652596]
[1758581333049,35.08,220.46,220.43,4.53652596]
[1758581333257,3.04394927,220.45,220.43,4.53652596]
[1758581333556,61.08,220.46,220.44,0.69]
[1758581333746,61.08,220.46,220.43,4.53652596]
[1758581333747,3.04393925,220.45,220.43,4.53652596]
[1758581334052,61.08,220.46,220.43,4.53652596]
[1758581334256,61.08,220.46,220.44,0.69]
[1758581334257,3.04500395,220.45,220.44,0.69]
[1758581334439,3.04500395,220.45,220.43,4.53652596]
[1758581334643,3.04500395,220.44,220.43,4.53652596]
[1758581334956,3.04500395,220.44,220.43,5.22652596]
[1758581340444,38.06407317,220.49,220.43,5.22652596]
[1758581340751,3.04407317,220.48,220.44,2.21386455]
[1758581340951,3.04407317,220.47,220.45,0.66]
[1758581341163,35.02,220.49,220.46,0.66]
[1758581341460,3.0444714,220.48,220.46,0.66]
[1758581341659,35.02,220.49,220.46,0.66]
[1758581341854,3.04396511,220.48,220.46,0.66]
[1758581342052,35.02,220.49,220.46,0.66]
[1758581342355,3.04392877,220.48,220.46,0.66]
[1758581342544,35.02,220.49,220.46,0.66]
[1758581342731,3.04342272,220.48,220.46,0.66]
[1758581342928,35.02,220.49,220.45,4.53608208]
[1758581343135,3.04341611,220.48,220.46,0.66]
[1758581343336,35.02,220.49,220.46,0.66]
[1758581343555,3.04428211,220.48,220.46,0.66]
[1758581343735,35.02,220.49,220.46,0.66]
[1758581343940,3.0444837,220.48,220.46,0.66]
[1758581344140,35.02,220.49,220.46,0.66]
[1758581344341,3.04473014,220.48,220.46,0.66]
[1758581344560,35.02,220.49,220.46,0.66]
[1758581344765,3.04464587,220.48,220.47,0.66]
[1758581344932,38.59539513,220.5,220.47,0.66]
[1758581345141,3.04462665,220.49,220.47,0.66]
[1758581345356,38.59539513,220.5,220.47,0.66]
[1758581345659,3.04409604,220.49,220.48,0.66]
[1758581346338,35.0,220.5,220.48,0.66]
[1758581346541,35.0,220.5,220.45,4.536176]
[1758581346761,3.04374929,220.49,220.45,4.536176]
[1758581346947,35.0,220.5,220.45,4.536176]
[1758581347149,35.0,220.5,220.47,4.5357645]
[1758581347348,35.0,220.5,220.48,0.66]
[1758581348942,35.0,220.5,220.47,4.5357645]
[1758581349142,35.0,220.5,220.47,5.1957645]
[1758581349766,35.0,220.5,220.48,0.66]
[1758581350144,29.5963183,220.52,220.48,0.66]
[1758581350350,38.02352179,220.51,220.48,0.66]
[1758581350651,34.98,220.51,220.48,0.66]
[1758581352171,60.98,220.5,220.48,0.66]
[1758581353063,60.98,220.5,220.44,18.13197579]
[1758581353267,60.98,220.5,220.45,14.25559401]
[1758581353469,26.0,220.51,220.46,0.66]
[1758581353655,34.96,220.5,220.46,0.66]
[1758581354359,34.96,220.5,220.47,0.66]
[1758581355372,34.96,220.5,220.47,5.19571451]
[1758581356578,11.34146894,220.55,220.47,13.59559401]
[1758581356758,64.00186463,220.54,220.48,2.23386455]
[1758581356963,34.96,220.53,220.49,0.68]
[1758581358057,34.96,220.53,220.5,0.68]
[1758581358782,34.96,220.53,220.51,0.68]
[1758581359357,26.0,220.54,220.51,0.68]
[1758581359672,60.94,220.54,220.51,0.68]
[1758581360368,34.94,220.54,220.51,0.68]
[1758581360679,34.94,220.54,220.51,5.21491804]
[1758581361057,26.0,220.56,220.52,0.68]
[1758581361268,34.94,220.55,220.52,0.68]
[1758581362481,160.2,220.57,220.52,5.21464319]
[1758581362777,0.66,220.56,220.52,2.23386455]
[1758581363559,195.8,220.57,220.52,6.76845801]
[1758581363774,160.86,220.57,220.52,6.08845801]
[1758581363976,34.94,220.56,220.53,0.68]
[1758581364154,34.94,220.56,220.54,1.55386455]
[1758581364557,34.94,220.56,220.53,2.42388965]
[1758581364759,35.6,220.56,220.53,2.42388965]
[1758581365881,35.6,220.56,220.52,0.68]
[1758581366064,35.6,220.56,220.52,3.10388965]
[1758581366261,0.66,220.55,220.47,2.42388965]
[1758581366470,61.58,220.54,220.46,18.13156425]
[1758581366679,0.66,220.53,220.46,18.13156425]
[1758581366878,35.6,220.52,220.47,2.42388965]
[1758581367380,0.66,220.51,220.47,2.42388965]